fUSD/lending_fUSD_20260305
["ID","MTS","AMOUNT","RATE_DAILY","PERIOD"]
[407691134,1772681447992,-300.28645221,0.00041974,2]
[407691135,1772681448002,-519.58908537,0.00041974,2]
[407691136,1772681448011,-306.82968309,0.00041974,2]
[407691137,1772681448021,-572.25014919,0.00041974,2]
[407691138,1772681448031,-300.0,0.00041974,2]
[407691139,1772681448041,-1084.19175733,0.00041974,2]
[407691140,1772681448050,-300.0,0.00041974,2]
[407691141,1772681448059,-1048.50100127,0.00041974,2]
[407691142,1772681448069,-306.61635286,0.00041974,2]
[407691143,1772681448078,-856.13486002,0.00041974,2]
[407691144,1772681448087,-307.87522791,0.00041974,2]
[407691145,1772681448097,-300.0,0.00041974,2]
[407691146,1772681448107,-459.37693596,0.00041974,2]
[407691147,1772681448117,-300.0,0.00041974,2]
[407691148,1772681448127,-372.1160746,0.00041974,2]
[407691149,1772681448136,-300.0,0.00041974,2]
[407691150,1772681448145,-300.28645221,0.00041974,2]
[407691151,1772681448155,-519.58908537,0.00041974,2]
[407691152,1772681448164,-306.82968309,0.00041974,2]
[407691153,1772681448174,-300.0,0.00041974,2]
[407691154,1772681448184,-1084.19175733,0.00041974,2]
[407691155,1772681448193,-300.0,0.00041974,2]
[407691156,1772681448203,-1048.50100127,0.00041974,2]
[407691157,1772681448212,-306.61635286,0.00041974,2]
[407691158,1772681448222,-856.13486002,0.00041974,2]
[407691159,1772681448232,-307.87522791,0.00041974,2]
[407691160,1772681448241,-300.0,0.00041974,2]
[407691161,1772681448250,-459.37693596,0.00041974,2]
[407691162,1772681448260,-300.0,0.00041974,2]
[407691163,1772681448270,-372.1160746,0.00041974,2]
[407691164,1772681448279,-300.0,0.00041974,2]
[407691165,1772681448288,-300.28645221,0.00041974,2]
[407691166,1772681448297,-519.58908537,0.00041974,2]
[407691167,1772681448307,-306.82968309,0.00041974,2]
[407691168,1772681448316,-300.0,0.00041974,2]
[407691169,1772681448326,-1084.19175733,0.00041974,2]
[407691170,1772681448335,-300.0,0.00041974,2]
[407691171,1772681448345,-501.93148818,0.00042,2]
[407691172,1772681448354,-946.74592464,0.00042,120]
[407691173,1772681448363,-168.0,0.00042069,2]
[407691174,1772681448374,-168.0,0.00042074,2]
[407691175,1772681448383,-168.0,0.00042113,2]
[407691176,1772681448392,-4437.14335971,0.00042154,15]
[407691177,1772681448402,-730.91,0.00042213,2]
[407691178,1772681448411,-2270.34339436,0.00042221,15]
[407691179,1772681448420,-9010.82063149,0.00042269,2]
[407691180,1772681448607,-572.01969778,0.00042269,2]
[407691181,1772681448619,-1893.12,0.00042269,2]
[407691182,1772681448635,-500.0,0.0004178,120]
[407691183,1772681448644,-255.91539955,0.00042269,2]
[407691184,1772681451786,156.3,0.00039791,2]
[407691186,1772681624671,153.28,0.00021253,2]
[407691187,1772681635105,218.61,0.00012086,2]
[407691188,1772681635365,218.61,0.00012086,2]
[407691189,1772681635719,218.61,0.00012086,2]
[407691190,1772681636044,218.61,0.00012086,2]
[407691191,1772681636297,218.61,0.00012086,7]
[407691192,1772681648483,1740.0,0.000395,2]
[407691193,1772681674423,155.102606,0.0002192,2]
[407691194,1772681675856,168.0,0.00039249,2]
[407691195,1772681677460,5000.0,0.00039791,4]
[407691196,1772681688011,1690.577394,0.00039691,2]
[407691197,1772681688040,309.422606,0.00039691,2]
[407691198,1772681688603,609.73051546,0.00039591,2]
[407691199,1772681702073,316.0,0.00039691,30]
[407691200,1772681703442,947.0,0.00039691,30]
[407691201,1772681708443,496.0,0.00039691,30]
[407691202,1772681781751,222.0,0.00039791,2]
[407691204,1772681928930,186.0,0.00018,2]
[407691205,1772681949731,182.10230381,0.00029973,36]
[407691206,1772681954384,150.52,0.00039791,2]
[407691207,1772682120111,391.0,0.00039706,2]
[407691208,1772682416158,10000.0,0.00039791,30]
[407691209,1772682498351,167.27,0.00020348,2]
[407691210,1772682604638,5123.79,0.00032877,60]
[407691217,1772682631469,-500.0,0.00039837,2]
[407691218,1772682631478,-168.0,0.00039937,120]
[407691219,1772682631488,-168.0,0.00039969,2]
[407691220,1772682631497,-168.0,0.00040241,7]
[407691221,1772682631507,-391.0,0.00040631,120]
[407691222,1772682631516,-152.0,0.00040801,3]
[407691223,1772682631525,-168.0,0.00040819,2]
[407691224,1772682631535,-168.0,0.00040825,2]
[407691225,1772682631544,-500.0,0.00040845,120]
[407691226,1772682631554,-494.53362241,0.00040845,30]
[407691227,1772682631564,-187.19413153,0.00040948,120]
[407691228,1772682631573,-152.63267797,0.00041,2]
[407691229,1772682631582,-168.0,0.00041048,7]
[407691230,1772682631592,-168.0,0.0004113,7]
[407691231,1772682631601,-609.85,0.0004113,30]
[407691232,1772682631611,-2097.93,0.0004113,30]
[407691233,1772682631620,-3796.16,0.0004113,30]
[407691234,1772682631629,-260.0,0.00041131,2]
[407691235,1772682631638,-260.0,0.00041149,7]
[407691236,1772682631648,-168.0,0.00041156,2]
[407691237,1772682631657,-150.0,0.00041171,2]
[407691238,1772682631667,-168.0,0.00041296,2]
[407691239,1772682631676,-866.17,0.00041342,2]
[407691240,1772682631685,-391.0,0.00041357,7]
[407691241,1772682631694,-200.0,0.00041381,2]
[407691242,1772682631704,-378.31004019,0.0004139,2]
[407691243,1772682631713,-186.75,0.00041492,2]
[407691244,1772682631722,-391.0,0.00041502,2]
[407691245,1772682631731,-179.0,0.00041619,11]
[407691246,1772682631740,-183.56,0.00041693,7]
[407691248,1772682631750,-500.0,0.00041779,120]
[407691249,1772682631761,-555.0,0.00041779,120]
[407691250,1772682631770,-555.0,0.0004178,120]
[407691251,1772682631780,-168.0,0.00041854,2]
[407691252,1772682631789,-333.0,0.0004193,2]
[407691253,1772682631800,-6240.36,0.00041931,2]
[407691254,1772682631810,-1048.50100127,0.0004198,2]
[407691255,1772682631821,-306.61635286,0.0004198,2]
[407691256,1772682631830,-856.13486002,0.0004198,2]
[407691257,1772682631839,-307.87522791,0.0004198,2]
[407691258,1772682631848,-300.0,0.0004198,2]
[407691259,1772682631858,-459.37693596,0.0004198,2]
[407691260,1772682631867,-378.0028771,0.0004198,2]
[407691261,1772682631877,-372.1160746,0.0004198,2]
[407691262,1772682631886,-471.02632524,0.0004198,2]
[407691263,1772682631896,-300.28645221,0.0004198,2]
[407691264,1772682631905,-519.58908537,0.0004198,2]
[407691265,1772682631915,-306.82968309,0.0004198,2]
[407691266,1772682631926,-300.0,0.0004198,2]
[407691267,1772682631935,-1084.19175733,0.0004198,2]
[407691268,1772682631945,-1048.50100127,0.0004198,2]
[407691269,1772682631954,-306.61635286,0.0004198,2]
[407691270,1772682631963,-856.13486002,0.0004198,2]
[407691271,1772682631972,-307.87522791,0.0004198,2]
[407691272,1772682631985,-300.0,0.0004198,2]
[407691273,1772682631995,-459.37693596,0.0004198,2]
[407691274,1772682632005,-372.1160746,0.0004198,2]
[407691275,1772682632014,-300.28645221,0.0004198,2]
[407691276,1772682632025,-519.58908537,0.0004198,2]
[407691277,1772682632034,-306.82968309,0.0004198,2]
[407691278,1772682632043,-300.0,0.0004198,2]
[407691279,1772682632053,-1084.19175733,0.0004198,2]
[407691280,1772682632063,-555.0,0.00042027,120]
[407691281,1772682632072,-555.0,0.00042027,120]
[407691282,1772682632082,-555.0,0.00042027,120]
[407691283,1772682632092,-1000.0,0.00042028,120]
[407691284,1772682632101,-173.811,0.00042028,63]
[407691285,1772682632111,-3143.883,0.00042028,63]
[407691286,1772682632120,-26643.4,0.00042092,10]
[407691287,1772682632129,-817.3808739,0.00042102,2]
[407691288,1772682632139,-20774.6147635,0.00042102,2]
[407691289,1772682632149,-555.0,0.00042102,30]
[407691290,1772682632158,-555.0,0.00042102,30]
[407691291,1772682632168,-1885.4613809,0.00042102,2]
[407691292,1772682632178,-11149.17419217,0.00042102,2]
[407691293,1772682632190,-14978.97639595,0.00042102,2]
[407691294,1772682632201,-24445.21319758,0.00042102,2]
[407691295,1772682632211,-265.27169288,0.00042102,30]
[407691296,1772682632220,-200.0,0.0004222,15]
[407691297,1772682632230,-2499.61427118,0.00042269,2]
[407691298,1772682632239,-1310.6202391,0.00042269,7]
[407691299,1772682632249,-200.0,0.00042269,7]
[407691300,1772682632259,-234.96910111,0.00042269,30]
[407691301,1772682632268,-200.0,0.00042269,7]
[407691302,1772682632277,-200.0,0.00042269,7]
[407691303,1772682632469,-300.0,0.00042274,2]
[407691304,1772682632478,-916.14,0.00042334,2]
[407691305,1772682632487,-260.0,0.00042337,120]
[407691306,1772682632496,-1500.0,0.00042345,120]
[407691307,1772682632505,-5000.0,0.00042389,120]
[407691308,1772682632514,-160.0,0.00042389,120]
[407691309,1772682632524,-1000.0,0.00042403,2]
[407691310,1772682632533,-572.83,0.00042421,120]
[407691311,1772682632542,-193.11,0.00042458,2]
[407691312,1772682632551,-521.59,0.0004249,2]
[407691313,1772682632561,-186.75,0.00042529,2]
[407691314,1772682632570,-500.0,0.00042557,120]
[407691315,1772682632580,-150.0,0.00042562,2]
[407691316,1772682632589,-6746.8794,0.00042574,2]
[407691317,1772682632598,-200.0,0.00042692,7]
[407691318,1772682632607,-200.0,0.00042692,7]
[407691319,1772682632617,-168.0,0.00042704,120]
[407691320,1772682632627,-168.0,0.00042714,2]
[407691321,1772682632636,-8734.84,0.00042774,2]
[407691322,1772682632645,-201.0,0.000428,30]
[407691323,1772682632655,-306.0,0.000428,30]
[407691324,1772682632664,-995.0,0.000428,30]
[407691325,1772682632674,-311.0,0.000428,30]
[407691326,1772682632684,-528.52,0.00042822,120]
[407691327,1772682632693,-168.0,0.00042841,2]
[407691328,1772682632703,-12579.4,0.0004285,2]
[407691329,1772682632712,-1000.0,0.00042964,2]
[407691330,1772682632721,-2500.0,0.00042964,2]
[407691331,1772682632730,-168.0,0.00042976,7]
[407691332,1772682632740,-700.464321,0.00043,90]
[407691333,1772682632749,-311.0,0.00043,10]
[407691334,1772682632758,-168.0,0.00043051,2]
[407691335,1772682632767,-7668.76451514,0.00043064,60]
[407691336,1772682632779,-708.27235126,0.00043064,60]
[407691337,1772682632790,-1929.27379233,0.00043064,60]
[407691338,1772682632810,-644.83,0.00043064,60]
[407691339,1772682632821,-492.41777302,0.00043064,60]
[407691340,1772682632832,-2538.93798931,0.00043064,60]
[407691345,1772682637628,-4384.08419692,0.00040992,120]
[407691346,1772682637736,-615.91580308,0.00040992,120]
[407691347,1772682637746,-693.3919763,0.0004222,15]
[407691348,1772682637755,-56.91830827,0.0004222,15]
[407691349,1772682637767,-662.12917115,0.0004222,15]
[407691350,1772682637776,-745.65223616,0.0004222,15]
[407691351,1772682637785,-302.66248983,0.0004222,15]
[407691352,1772682637799,-470.57887907,0.0004222,15]
[407691353,1772682637808,-85.36908304,0.0004222,15]
[407691354,1772682637820,-716.48221651,0.0004222,15]
[407691355,1772682637829,-831.51979763,0.0004222,15]
[407691356,1772682637838,-862.28603014,0.0004222,15]
[407691357,1772682637847,-894.19061326,0.0004222,15]
[407691358,1772682637855,-927.27566595,0.0004222,15]
[407691359,1772682637864,-15808.17880678,0.00043054,10]
[407691360,1772682637875,-2049.44998034,0.00043054,10]
[407691361,1772682637887,-4345.20121288,0.00043054,10]
[407691362,1772682637896,-13240.19465832,0.00043064,60]
[407691363,1772682637911,-2443.30892062,0.00043064,60]
[407691364,1772682637920,-200.0,0.00043119,7]
[407691365,1772682637930,-200.0,0.00043119,7]
[407691366,1772682637940,-168.0,0.00043146,2]
[407691367,1772682637949,-844.0,0.00043208,16]
[407691369,1772682637958,-168.0,0.00043249,2]
[407691371,1772682637967,-212.4178801,0.000435,120]
[407691373,1772682637977,-846.0,0.00043507,16]
[407691375,1772682637989,-200.0,0.0004355,7]
[407691378,1772682637999,-200.0,0.0004355,7]
[407691379,1772682638008,-186.75,0.00043566,2]
[407691382,1772682638019,-500.0,0.00043637,120]
[407691384,1772682638028,-193.11,0.00043638,2]
[407691386,1772682638037,-257.52,0.00043644,2]
[407691388,1772682638047,-500.0,0.00043644,2]
[407691390,1772682638057,-187.19413152,0.00043704,120]
[407691392,1772682638066,-250.0,0.0004382,120]
[407691394,1772682638075,-5000.0,0.0004382,120]
[407691396,1772682638084,-195.0,0.0004382,120]
[407691398,1772682638093,-502.72522659,0.0004382,120]
[407691400,1772682638101,-907.76767785,0.00043829,28]
[407691402,1772682638113,-1160.92793615,0.00043829,28]
[407691404,1772682638122,-500.0,0.00043835,120]
[407691406,1772682638131,-488.58,0.00043836,120]
[407691408,1772682638140,-500.0,0.00043928,120]
[407691410,1772682638149,-305.71893771,0.00043928,120]
[407691412,1772682638158,-159.01520008,0.00043928,31]
[407691414,1772682638167,-500.0,0.00043928,120]
[407691416,1772682638176,-239.07749109,0.00043928,7]
[407691418,1772682638185,-233.8718226,0.00043928,120]
[407691420,1772682638194,-193.44146046,0.00043928,120]
[407691421,1772682638202,-500.0,0.00043928,120]
[407691423,1772682638211,-500.0,0.00043928,120]
[407691425,1772682638220,-500.0,0.00043928,120]
[407691427,1772682638229,-500.0,0.00043928,120]
[407691429,1772682638238,-500.0,0.00043928,120]
[407691431,1772682638247,-500.0,0.00043928,120]
[407691433,1772682638255,-500.0,0.00043928,120]
[407691434,1772682638264,-500.0,0.00043928,120]
[407691435,1772682638273,-500.0,0.00043928,120]
[407691436,1772682638283,-500.0,0.00043928,120]
[407691437,1772682638291,-500.0,0.00043928,120]
[407691438,1772682638300,-500.0,0.00043928,120]
[407691439,1772682638309,-500.0,0.00043928,120]
[407691440,1772682638318,-500.0,0.00043928,120]
[407691441,1772682638327,-500.0,0.00043928,120]
[407691442,1772682638336,-500.0,0.00043928,120]
[407691443,1772682638345,-500.0,0.00043928,120]
[407691444,1772682638354,-500.0,0.00043928,120]
[407691445,1772682638363,-500.0,0.00043928,120]
[407691446,1772682638371,-500.0,0.00043928,120]
[407691447,1772682638381,-500.0,0.00043928,120]
[407691448,1772682638390,-500.0,0.00043928,120]
[407691449,1772682638399,-500.0,0.00043928,120]
[407691450,1772682638408,-500.0,0.00043928,120]
[407691451,1772682638417,-500.0,0.00043928,120]
[407691452,1772682638426,-500.0,0.00043928,120]
[407691453,1772682638438,-500.0,0.00043928,120]
[407691454,1772682638447,-500.0,0.00043928,120]
[407691455,1772682638456,-500.0,0.00043928,120]
[407691456,1772682638465,-511.61694791,0.00043928,120]
[407691457,1772682638475,-500.0,0.00043928,120]
[407691458,1772682638484,-500.0,0.00043928,120]
[407691459,1772682638494,-500.0,0.00043928,120]
[407691460,1772682638503,-500.0,0.00043928,120]
[407691461,1772682638512,-500.0,0.00043928,120]
[407691462,1772682638522,-500.0,0.00043928,120]
[407691463,1772682638531,-500.0,0.00043928,120]
[407691464,1772682638540,-500.0,0.00043928,120]
[407691465,1772682638549,-500.0,0.00043928,120]
[407691466,1772682638558,-500.0,0.00043928,120]
[407691467,1772682638567,-500.0,0.00043928,120]
[407691468,1772682638576,-457.20895493,0.00043928,120]
[407691476,1772682642611,-150.0,0.0004197,120]
[407691477,1772682642623,-961.58486559,0.0004222,15]
[407691478,1772682642635,-997.16350561,0.0004222,15]
[407691479,1772682642646,-150.08943439,0.0004249,120]
[407691480,1772682642657,-1041.00879198,0.00043049,50]
[407691481,1772682642669,-1050.83705038,0.00043049,50]
[407691482,1772682642680,-42.79104507,0.00043928,120]
[407691483,1772682642690,-500.0,0.00043928,120]
[407691484,1772682642702,-500.0,0.00043928,120]
[407691485,1772682642713,-500.0,0.00043928,120]
[407691486,1772682642724,-500.0,0.00043928,120]
[407691487,1772682642735,-500.0,0.00043928,120]
[407691488,1772682642746,-500.0,0.00043928,120]
[407691489,1772682642758,-500.0,0.00043928,120]
[407691490,1772682642769,-500.0,0.00043928,120]
[407691491,1772682642780,-650.0,0.00043928,120]
[407691492,1772682642792,-500.0,0.00043928,120]
[407691493,1772682642803,-500.0,0.00043928,120]
[407691494,1772682642814,-500.0,0.00043928,120]
[407691495,1772682642825,-500.0,0.00043928,120]
[407691496,1772682642837,-420.99507265,0.00043928,120]
[407691497,1772682642850,-79.00492735,0.00043928,120]
[407691498,1772682642862,-500.0,0.00043928,120]
[407691499,1772682642872,-500.0,0.00043928,120]
[407691500,1772682642884,-500.0,0.00043928,120]
[407691501,1772682642895,-500.0,0.00043928,120]
[407691502,1772682642906,-500.0,0.00043928,120]
[407691503,1772682642917,-500.0,0.00043928,120]
[407691504,1772682642927,-500.0,0.00043928,120]
[407691506,1772682642938,-500.0,0.00043928,120]
[407691507,1772682642949,-500.0,0.00043928,120]
[407691508,1772682642959,-500.0,0.00043928,120]
[407691509,1772682642970,-500.0,0.00043928,120]
[407691510,1772682642982,-500.0,0.00043928,120]
[407691511,1772682642995,-500.0,0.00043928,120]
[407691512,1772682643005,-500.0,0.00043928,120]
[407691513,1772682643016,-500.0,0.00043928,120]
[407691514,1772682643027,-500.0,0.00043928,120]
[407691515,1772682643038,-500.0,0.00043928,120]
[407691516,1772682643049,-500.0,0.00043928,120]
[407691517,1772682643061,-305.62345717,0.00043928,120]
[407691518,1772682643076,-194.37654283,0.00043928,120]
[407691519,1772682643087,-500.0,0.00043928,120]
[407691520,1772682643098,-500.0,0.00043928,120]
[407691521,1772682643109,-151.0,0.00043928,7]
[407691522,1772682643120,-151.0,0.00043928,120]
[407691523,1772682643130,-151.0,0.00043928,7]
[407691524,1772682643141,-151.0,0.00043928,7]
[407691525,1772682643152,-151.0,0.00043928,120]
[407691526,1772682643164,-151.0,0.00043928,120]
[407691527,1772682643174,-151.0,0.00043928,120]
[407691528,1772682643185,-151.0,0.00043928,60]
[407691529,1772682643196,-153.811855,0.00043928,120]
[407691530,1772682643208,-151.0,0.00043928,60]
[407691531,1772682643219,-151.0,0.00043928,60]
[407691532,1772682643230,-151.0,0.00043928,14]
[407691533,1772682643241,-205.16724,0.00043928,120]
[407691534,1772682643252,-151.0,0.00043928,120]
[407691535,1772682643262,-172.869691,0.00043928,120]
[407691536,1772682643273,-151.0,0.00043928,120]
[407691537,1772682643292,-151.0,0.00043928,60]
[407691538,1772682643307,-151.0,0.00043928,120]
[407691539,1772682643321,-241.062473,0.00043928,120]
[407691540,1772682643334,-151.0,0.00043928,120]
[407691541,1772682643346,-151.0,0.00043928,60]
[407691542,1772682643359,-151.0,0.00043928,120]
[407691543,1772682643371,-1771.47786194,0.00043928,14]
[407691544,1772682643387,-932.94172306,0.00043928,14]
[407691545,1772682643399,-2704.419585,0.00043928,14]
[407691546,1772682643412,-151.0,0.00043928,120]
[407691547,1772682643425,-2704.419585,0.00043928,14]
[407691548,1772682643437,-2704.419585,0.00043928,14]
[407691549,1772682643449,-21.99952194,0.00043928,120]
[407691550,1772682643463,-674.98481006,0.00043928,120]
[407691551,1772682643475,-696.984332,0.00043928,120]
[407691552,1772682643486,-151.0,0.00043929,120]
[407691553,1772682643497,-153.849122,0.00043929,120]
[407691554,1772682643510,-151.0,0.00043929,120]
[407691555,1772682643521,-151.0,0.00043929,120]
[407691556,1772682643532,-223.51177975,0.00043929,120]
[407691557,1772682643544,-351.447539,0.00043929,120]
[407691558,1772682643555,-151.0,0.00043929,120]
[407691559,1772682643567,-129.06741719,0.00043929,120]
[407691560,1772682643587,-222.38012181,0.00043929,120]
[407691561,1772682643598,-151.0,0.00043929,120]
[407691562,1772682643609,-181.924453,0.00043929,120]
[407691563,1772682643621,-151.0,0.00043929,35]
[407691564,1772682643633,-351.447539,0.00043929,120]
[407691565,1772682643649,-151.0,0.00043929,120]
[407691566,1772682643661,-351.447539,0.00043929,120]
[407691567,1772682643673,-151.0,0.00043929,120]
[407691568,1772682643686,-151.0,0.00043929,120]
[407691569,1772682643699,-151.0,0.00043929,120]
[407691570,1772682643713,-299.673235,0.00043929,120]
[407691571,1772682643726,-151.0,0.00043929,120]
[407691572,1772682643740,-151.0,0.00043929,120]
[407691573,1772682643753,-151.0,0.00043929,31]
[407691574,1772682643764,-151.0,0.00043929,31]
[407691575,1772682643774,-155.391812,0.00043929,120]
[407691576,1772682643783,-151.0,0.00043929,120]
[407691577,1772682643793,-151.0,0.00043929,120]
[407691578,1772682643802,-151.0,0.00043929,120]
[407691579,1772682643812,-249.320038,0.00043929,120]
[407691580,1772682643821,-151.0,0.00043929,31]
[407691581,1772682643830,-398.579205,0.00043929,120]
[407691582,1772682643843,-398.579205,0.00043929,120]
[407691583,1772682643852,-398.579205,0.00043929,120]
[407691584,1772682644133,-398.579205,0.00043929,120]
[407691585,1772682644156,-2426.73802,0.00043929,120]
[407691586,1772682644174,-2426.73802,0.00043929,120]
[407691587,1772682644184,-2426.73802,0.00043929,120]
[407691588,1772682644194,-2426.73802,0.00043929,120]
[407691589,1772682644205,-151.0,0.00043929,120]
[407691590,1772682644215,-178.605184,0.00043929,120]
[407691591,1772682644224,-151.0,0.0004393,120]
[407691592,1772682644234,-151.0,0.0004393,120]
[407691593,1772682644244,-184.992276,0.0004393,120]
[407691594,1772682644255,-151.068109,0.0004393,120]
[407691595,1772682644265,-151.068109,0.0004393,120]
[407691596,1772682644276,-188.463895,0.0004393,120]
[407691597,1772682644288,-151.068109,0.0004393,120]
[407691598,1772682644298,-152.910253,0.0004393,120]
[407691599,1772682644307,-151.0,0.0004393,120]
[407691600,1772682644318,-151.068109,0.0004393,120]
[407691601,1772682644329,-155.731899,0.0004393,120]
[407691602,1772682644342,-155.731899,0.0004393,120]
[407691603,1772682644353,-155.731899,0.0004393,120]
[407691604,1772682644364,-155.731899,0.0004393,120]
[407691605,1772682644374,-151.0,0.0004393,120]
[407691606,1772682644385,-151.0,0.0004393,120]
[407691607,1772682644395,-151.0,0.0004393,120]
[407691608,1772682644405,-151.0,0.0004393,120]
[407691609,1772682644415,-151.0,0.0004393,120]
[407691610,1772682644425,-151.0,0.0004393,120]
[407691611,1772682644435,-151.0,0.0004393,120]
[407691612,1772682644445,-151.0,0.0004393,120]
[407691613,1772682644455,-151.0,0.0004393,120]
[407691614,1772682644464,-151.0,0.0004393,120]
[407691615,1772682644475,-151.0,0.0004393,120]
[407691616,1772682644486,-151.0,0.0004393,120]
[407691617,1772682644495,-151.0,0.0004393,120]
[407691618,1772682644505,-151.0,0.0004393,120]
[407691619,1772682644514,-151.0,0.0004393,120]
[407691620,1772682644524,-151.0,0.0004393,120]
[407691621,1772682644536,-151.0,0.0004393,120]
[407691622,1772682644547,-546.361528,0.0004393,120]
[407691623,1772682644557,-546.361528,0.0004393,120]
[407691624,1772682644568,-546.361528,0.0004393,120]
[407691625,1772682644577,-151.0,0.0004393,120]
[407691626,1772682644586,-546.361528,0.0004393,120]
[407691627,1772682644595,-151.0,0.0004393,120]
[407691628,1772682644605,-151.0,0.0004393,120]
[407691629,1772682644614,-151.0,0.0004393,120]
[407691630,1772682644624,-151.0,0.0004393,120]
[407691631,1772682644633,-151.0,0.0004393,120]
[407691632,1772682644644,-189.075831,0.0004393,120]
[407691633,1772682644654,-152.530651,0.0004393,120]
[407691634,1772682644663,-151.0,0.0004393,120]
[407691635,1772682644672,-152.922773,0.0004393,120]
[407691636,1772682644682,-216.352352,0.0004393,120]
[407691637,1772682644692,-151.0,0.0004393,120]
[407691638,1772682644702,-151.0,0.0004393,120]
[407691639,1772682644711,-151.0,0.0004393,120]
[407691640,1772682644720,-151.0,0.0004393,120]
[407691641,1772682644729,-157.104652,0.0004393,120]
[407691642,1772682644740,-151.0,0.0004393,120]
[407691643,1772682644749,-641.067422,0.0004393,15]
[407691644,1772682644758,-641.067422,0.0004393,15]
[407691646,1772682644767,-641.067422,0.0004393,15]
[407691648,1772682644776,-151.0,0.0004393,120]
[407691649,1772682644785,-169.889616,0.0004393,120]
[407691651,1772682644794,-641.067422,0.0004393,15]
[407691653,1772682644803,-151.0,0.0004393,120]
[407691655,1772682644814,-404.839304,0.0004393,120]
[407691657,1772682644823,-151.0,0.0004393,120]
[407691658,1772682644832,-151.0,0.0004393,120]
[407691660,1772682644842,-151.0,0.0004393,120]
[407691661,1772682644851,-404.839304,0.0004393,120]
[407691662,1772682644860,-151.0,0.0004393,120]
[407691663,1772682644870,-228.39988,0.0004393,120]
[407691664,1772682644879,-404.839304,0.0004393,120]
[407691665,1772682644889,-404.839304,0.0004393,120]
[407691667,1772682644898,-151.0,0.0004393,120]
[407691669,1772682644908,-151.0,0.0004393,120]
[407691671,1772682644918,-171.951368,0.0004393,120]
[407691673,1772682644928,-151.0,0.0004393,120]
[407691675,1772682644937,-151.0,0.0004393,120]
[407691677,1772682644946,-482.709516,0.0004393,120]
[407691679,1772682644955,-482.709516,0.0004393,120]
[407691681,1772682644965,-482.709516,0.0004393,120]
[407691683,1772682644974,-482.709516,0.0004393,120]
[407691685,1772682644985,-151.0,0.0004393,120]
[407691686,1772682644995,-151.0,0.0004393,120]
[407691687,1772682645005,-151.0,0.0004393,120]
[407691688,1772682645015,-151.0,0.0004393,120]
[407691689,1772682645026,-151.0,0.0004393,120]
[407691690,1772682645038,-151.0,0.0004393,120]
[407691691,1772682645048,-151.0,0.0004393,120]
[407691692,1772682645061,-162.326088,0.0004393,120]
[407691693,1772682645072,-151.0,0.0004393,120]
[407691694,1772682645082,-153.396184,0.0004393,120]
[407691695,1772682645093,-222.013865,0.0004393,120]
[407691696,1772682645102,-151.0,0.0004393,120]
[407691697,1772682645112,-151.0,0.0004393,120]
[407691698,1772682645121,-151.0,0.0004393,120]
[407691699,1772682645131,-221.218027,0.0004393,120]
[407691700,1772682645141,-222.013865,0.0004393,120]
[407691701,1772682645152,-151.0,0.0004393,120]
[407691702,1772682645163,-221.218027,0.0004393,120]
[407691703,1772682645173,-222.013865,0.0004393,120]
[407691704,1772682645182,-151.0,0.0004393,120]